[Event "50th Ciudad Sevilla 2024"]
[Site "Sevilla"]
[Date "2025.01.14"]
[Round "5.13"]
[White "Morais, Miguel Almeida"]
[Black "Matamoros Franco, Carlos S."]
[Result "0-1"]
[Annotator "RC"]
[ECO "A56"]
[WhiteElo "2132"]
[BlackElo "2394"]
[PlyCount "78"]
[EventDate "2025.01.10"]
[EventType "swiss"]
[EventCountry "ESP"]
[SourceTitle "playchess.com"]
[Source "ChessBase"]
[SourceQuality "1"]
[TimeControl "90+30"]

1. d4 {[%emt 0:00:00]} Nf6 {[%emt 0:00:00]} 2. c4 {[%emt 0:00:00]} c5 {[%emt 0:00:00]} 3. d5 {[%emt 0:00:00]} g6 {[%emt 0:00:00]} 4. Nc3 {[%emt 0:00:00]} Bg7 {[%emt 0:00:00]} 5. e4 {[%emt 0:00:00]} d6 {[%emt 0:00:00]} 6. Nf3 {[%emt 0:00:00]} O-O {[%emt 0:00:00]} 7. Be2 {[%emt 0:00:00]} e6 {[%emt 0:00:00]} 8. O-O {[%emt 0:00:00]} exd5 {[%emt 0:00:00]} 9. exd5 {[%emt 0:00:00]} Bg4 {[%emt 0:00:00]} 10. h3 {[%emt 0:00:00]} Bxf3 {[%emt 0:00:00]} 11. Bxf3 {[%emt 0:00:00]} Nbd7 {[%emt 0:00:00]} 12. Bf4 {[%emt 0:00:00]} Ne8 {[%emt 0:00:00]} 13. Be2 {[%emt 0:00:00]} f5 {[%emt 0:00:00]} 14. Qc2 {[%emt 0:00:00]} Ne5 {[%emt 0:00:00]} 15. Rae1 {[%emt 0:00:00]} h6 {[%emt 0:00:00]} 16. Bd2 {[%emt 0:00:00]} h5 {[%emt 0:00:00]} 17. b3 {[%emt 0:00:00]} a6 {[%emt 0:00:00]} 18. Bd1 {[%emt 0:00:00]} f4 {[%emt 0:00:00]} 19. Rxe5 {[%emt 0:00:00]} dxe5 {[%emt 0:00:00]} 20. Qxg6 {[%emt 0:00:00]} Rf6 {[%emt 0:00:00]} 21. Qxh5 {[%emt 0:00:00]} Rh6 {[%emt 0:00:00]} 22. Qf3 {[%emt 0:00:00]} Nd6 {[%emt 0:00:00]} 23. Ne4 {[%emt 0:00:00]} b6 {[%emt 0:00:00]} 24. Bc2 {[%emt 0:00:00]} Nf5 {[%emt 0:00:00]} 25. Qg4 {[%emt 0:00:00]} Nd4 {[%emt 0:00:00]} 26. Bd3 {[%emt 0:00:00]} Rh4 {[%emt 0:00:00]} 27. Qg6 {[%emt 0:00:00]} Rh6 {[%emt 0:00:00]} 28. Qg4 {[%emt 0:00:00]} Rh4 {[%emt 0:00:00]} 29. Qd1 {[%emt 0:00:00]} Bh6 {[%emt 0:00:00]} 30. g3 {[%emt 0:00:23]} Qc8 {[%emt 0:00:00]} 31. gxh4 {[%emt 0:08:18]} Qxh3 {[%emt 0:00:00]} 32. f3 {[%emt 0:02:26]} Kh8 {[%emt 0:00:38]} 33. Nf6 {[%emt 0:03:06]} Qg3+ {[%emt 0:00:37]} 34. Kh1 {[%emt 0:00:02]} Qxh4+ {[%emt 0:00:32]} 35. Kg2 {[%emt 0:00:06]} Qxf6 {[%emt 0:01:26]} 36. Qe1 {[%emt 0:04:16]} Rg8+ {[%emt 0:01:27]} 37. Kh1 {[%emt 0:00:06]} Rg3 {[%emt 0:00:27]} 38. Rf2 {[%emt 0:01:06]} Qh4+ {[%emt 0:00:51]} 39. Rh2 {[%emt 0:00:30]} Qxh2+ {[%emt 0:00:05]} 0-1

[Event "50th Ciudad Sevilla 2024"]
[Site "Sevilla"]
[Date "2025.01.14"]
[Round "5.14"]
[White "Lin, Yingrui"]
[Black "Ramon Perez, Jose Luis"]
[Result "1-0"]
[Annotator "ChessBase"]
[ECO "A20"]
[WhiteElo "2393"]
[BlackElo "2120"]
[PlyCount "97"]
[EventDate "2025.01.10"]
[EventType "swiss"]
[EventCountry "ESP"]
[SourceTitle "playchess.com"]
[Source "ChessBase"]
[SourceQuality "1"]
[TimeControl "90+30"]

1. c4 {[%emt 0:00:00]} e5 {[%emt 0:00:00]} 2. g3 {[%emt 0:00:00]} Nc6 {[%emt 0:00:00]} 3. Bg2 {[%emt 0:00:00]} Bc5 {[%emt 0:00:00]} 4. Nc3 {[%emt 0:00:00]} a6 {[%emt 0:00:00]} 5. e3 {[%emt 0:00:00]} d6 {[%emt 0:00:00]} 6. Nge2 {[%emt 0:00:00]} Ba7 {[%emt 0:00:00]} 7. O-O {[%emt 0:00:00]} h5 {[%emt 0:00:00]} 8. d4 {[%emt 0:00:00]} h4 {[%emt 0:00:00]} 9. b4 {[%emt 0:00:00]} hxg3 {[%emt 0:00:00]} 10. fxg3 {[%emt 0:00:00]} Bh3 {[%emt 0:00:00]} 11. Bxh3 {[%emt 0:00:00]} Rxh3 {[%emt 0:00:00]} 12. d5 {[%emt 0:00:00]} Nce7 {[%emt 0:00:00]} 13. Rxf7 {[%emt 0:00:00]} Qd7 {[%emt 0:00:00]} 14. Qf1 {[%emt 0:00:00]} O-O-O {[%emt 0:00:00]} 15. Ne4 {[%emt 0:00:00]} Rh5 {[%emt 0:00:00]} 16. Qf3 {[%emt 0:00:00]} Rf5 {[%emt 0:00:00]} 17. Rxf5 {[%emt 0:00:00]} Qxf5 {[%emt 0:00:00]} 18. Qxf5+ {[%emt 0:00:00]} Nxf5 {[%emt 0:00:00]} 19. Kg2 {[%emt 0:00:00]} Ngh6 {[%emt 0:00:00]} 20. h3 {[%emt 0:00:00]} Rf8 {[%emt 0:00:00]} 21. c5 {[%emt 0:00:00]} c6 {[%emt 0:00:00]} 22. dxc6 {[%emt 0:00:00]} bxc6 {[%emt 0:00:00]} 23. g4 {[%emt 0:00:00]} d5 {[%emt 0:00:00]} 24. Ng5 {[%emt 0:00:00]} Nh4+ {[%emt 0:00:00]} 25. Kg3 {[%emt 0:00:00]} Ng6 {[%emt 0:00:00]} 26. e4 {[%emt 0:00:00]} Bb8 {[%emt 0:00:00]} 27. Bd2 {[%emt 0:00:00]} Rf6 {[%emt 0:00:00]} 28. h4 {[%emt 0:00:00]} Nf7 {[%emt 0:00:00]} 29. Nh7 {[%emt 0:00:00]} Re6 {[%emt 0:00:00]} 30. Rf1 {[%emt 0:00:00]} Nf4 {[%emt 0:00:00]} 31. Nxf4 {[%emt 0:00:00]} exf4+ {[%emt 0:00:00]} 32. Bxf4 {[%emt 0:00:00]} Ne5 {[%emt 0:00:00]} 33. exd5 {[%emt 0:00:00]} cxd5 {[%emt 0:00:00]} 34. Rd1 {[%emt 0:00:00]} Nc6 {[%emt 0:00:00]} 35. Bxb8 {[%emt 0:00:00]} Kxb8 {[%emt 0:00:00]} 36. Rxd5 {[%emt 0:00:00]} Nxb4 {[%emt 0:00:00]} 37. Rd7 {[%emt 0:00:00]} Nxa2 {[%emt 0:00:00]} 38. Rxg7 {[%emt 0:00:00]} Nc3 {[%emt 0:00:00]} 39. Nf8 {[%emt 0:00:00]} Re3+ {[%emt 0:00:00]} 40. Kf4 {[%emt 0:00:00]} Nd5+ {[%emt 0:00:00]} 41. Kg5 {[%emt 0:00:00]} a5 {[%emt 0:00:00]} 42. Nd7+ {[%emt 0:00:00]} Kc7 {[%emt 0:00:00]} 43. Nb6+ {[%emt 0:00:00]} Kc6 {[%emt 0:00:00]} 44. Nxd5 {[%emt 0:00:00]} Re5+ {[%emt 0:00:00]} 45. Kg6 {[%emt 0:00:00]} Rxd5 {[%emt 0:00:00]} 46. h5 {[%emt 0:00:00]} Kxc5 {[%emt 0:00:00]} 47. h6 {[%emt 0:00:00]} Rd6+ {[%emt 0:00:00]} 48. Kh5 {[%emt 0:00:00]} Kb6 {[%emt 0:00:00]} 49. Rg6 {[%emt 0:00:00]} 1-0

[Event "50th Ciudad Sevilla 2024"]
[Site "Sevilla"]
[Date "2025.01.14"]
[Round "5.15"]
[White "Gonzalez Gonzalez, Alfonso"]
[Black "Lohia, Sohum"]
[Result "0-1"]
[Annotator "RC"]
[ECO "A14"]
[WhiteElo "2094"]
[BlackElo "2367"]
[PlyCount "118"]
[EventDate "2025.01.10"]
[EventType "swiss"]
[EventCountry "ESP"]
[SourceTitle "playchess.com"]
[Source "ChessBase"]
[SourceQuality "1"]
[TimeControl "90+30"]

1. g3 {[%emt 0:00:00]} Nf6 {[%emt 0:00:00]} 2. c4 {[%emt 0:00:00]} e6 {[%emt 0:00:00]} 3. Bg2 {[%emt 0:00:00]} d5 {[%emt 0:00:00]} 4. Nf3 {[%emt 0:00:00]} Be7 {[%emt 0:00:00]} 5. O-O {[%emt 0:00:00]} O-O {[%emt 0:00:00]} 6. Qc2 {[%emt 0:00:00]} d4 {[%emt 0:00:00]} 7. e3 {[%emt 0:00:00]} c5 {[%emt 0:00:00]} 8. exd4 {[%emt 0:00:00]} cxd4 {[%emt 0:00:00]} 9. d3 {[%emt 0:00:00]} Nc6 {[%emt 0:00:00]} 10. a3 {[%emt 0:00:00]} a5 {[%emt 0:00:00]} 11. Bg5 {[%emt 0:00:00]} h6 {[%emt 0:00:00]} 12. Bxf6 {[%emt 0:00:00]} Bxf6 {[%emt 0:00:00]} 13. Nbd2 {[%emt 0:00:00]} Re8 {[%emt 0:00:00]} 14. c5 {[%emt 0:00:00]} Be7 {[%emt 0:00:00]} 15. Rfe1 {[%emt 0:00:00]} Qc7 {[%emt 0:00:00]} 16. Rac1 {[%emt 0:00:00]} a4 {[%emt 0:00:00]} 17. Nc4 {[%emt 0:00:00]} Bxc5 {[%emt 0:00:00]} 18. Nce5 {[%emt 0:00:00]} Nxe5 {[%emt 0:00:00]} 19. Nxe5 {[%emt 0:00:00]} Ra5 {[%emt 0:00:00]} 20. f4 {[%emt 0:00:00]} Qd8 {[%emt 0:00:00]} 21. Qd2 {[%emt 0:00:00]} f6 {[%emt 0:00:00]} 22. Bc6 {[%emt 0:00:00]} Re7 {[%emt 0:00:00]} 23. Nc4 {[%emt 0:00:00]} Ra7 {[%emt 0:00:00]} 24. Be4 {[%emt 0:00:00]} b6 {[%emt 0:00:00]} 25. Qg2 {[%emt 0:00:00]} Qe8 {[%emt 0:00:00]} 26. Bc6 {[%emt 0:00:00]} Bd7 {[%emt 0:00:00]} 27. Bxd7 {[%emt 0:00:00]} Qxd7 {[%emt 0:00:00]} 28. Nd2 {[%emt 0:00:00]} Qb5 {[%emt 0:00:00]} 29. Nc4 {[%emt 0:00:00]} Rac7 {[%emt 0:01:12]} 30. Qa8+ {[%emt 0:00:00]} Qe8 {[%emt 0:01:46]} 31. Qe4 {[%emt 0:00:00]} Qc6 {[%emt 0:07:36]} 32. Nd2 {[%emt 0:00:00]} Qd5 {[%emt 0:00:43]} 33. Re2 {[%emt 0:00:00]} Kf7 {[%emt 0:01:17]} 34. Rce1 {[%emt 0:00:00]} Qxe4 {[%emt 0:02:01]} 35. Nxe4 {[%emt 0:00:00]} f5 {[%emt 0:00:49]} 36. Nd2 {[%emt 0:00:00]} b5 {[%emt 0:00:35]} 37. Re5 {[%emt 0:00:00]} Rc6 {[%emt 0:01:36]} 38. Kg2 {[%emt 0:00:00]} Kf6 {[%emt 0:01:00]} 39. Nf3 {[%emt 0:00:00]} g5 {[%emt 0:01:15]} 40. Rc1 {[%emt 0:00:00]} Rec7 {[%emt 0:00:05]} 41. Re2 {[%emt 0:00:00]} Bb6 {[%emt 0:00:57]} 42. Rxc6 {[%emt 0:00:00]} Rxc6 {[%emt 0:00:01]} 43. Ne5 {[%emt 0:00:00]} Rc7 {[%emt 0:00:10]} 44. Kf2 {[%emt 0:00:00]} gxf4 {[%emt 0:00:59]} 45. gxf4 {[%emt 0:00:00]} Bc5 {[%emt 0:00:31]} 46. Nf3 {[%emt 0:00:00]} Bd6 {[%emt 0:00:32]} 47. h3 {[%emt 0:00:00]} Bxf4 {[%emt 0:00:45]} 48. Nxd4 {[%emt 0:00:00]} Be5 {[%emt 0:00:45]} 49. Nxe6 {[%emt 0:00:00]} Re7 {[%emt 0:00:25]} 50. d4 {[%emt 0:00:41]} Rxe6 {[%emt 0:00:09]} 51. dxe5+ {[%emt 0:00:07]} Rxe5 {[%emt 0:00:01]} 52. Rc2 {[%emt 0:00:42]} Rd5 {[%emt 0:00:26]} 53. Kf3 {[%emt 0:03:35]} Ke5 {[%emt 0:01:07]} 54. h4 {[%emt 0:01:16]} Rd3+ {[%emt 0:00:12]} 55. Ke2 {[%emt 0:00:16]} Rb3 {[%emt 0:00:21]} 56. Kd1 {[%emt 0:00:53]} f4 {[%emt 0:00:22]} 57. Rc6 {[%emt 0:01:00]} Rxb2 {[%emt 0:00:12]} 58. Rxh6 {[%emt 0:00:09]} f3 {[%emt 0:00:39]} 59. Ke1 {[%emt 0:00:56]} b4 {[%emt 0:00:23]} 0-1

[Event "50th Ciudad Sevilla 2024"]
[Site "Sevilla"]
[Date "2025.01.14"]
[Round "5.16"]
[White "Starostits, Ilmars"]
[Black "Lasinskas, Povilas"]
[Result "0-1"]
[Annotator "RC"]
[ECO "E18"]
[WhiteElo "2364"]
[BlackElo "2099"]
[PlyCount "64"]
[EventDate "2025.01.10"]
[EventType "swiss"]
[EventCountry "ESP"]
[SourceTitle "playchess.com"]
[Source "ChessBase"]
[SourceQuality "1"]
[TimeControl "90+30"]

1. d4 {[%emt 0:00:00]} Nf6 {[%emt 0:00:00]} 2. Nf3 {[%emt 0:00:00]} b6 {[%emt 0:00:00]} 3. g3 {[%emt 0:00:00]} Bb7 {[%emt 0:00:00]} 4. Bg2 {[%emt 0:00:00]} e6 {[%emt 0:00:00]} 5. O-O {[%emt 0:00:00]} Be7 {[%emt 0:00:00]} 6. c4 {[%emt 0:00:00]} O-O {[%emt 0:00:00]} 7. Nc3 {[%emt 0:00:00]} d5 {[%emt 0:00:00]} 8. b3 {[%emt 0:00:00]} Na6 {[%emt 0:00:00]} 9. Bb2 {[%emt 0:00:00]} c5 {[%emt 0:00:00]} 10. e3 {[%emt 0:00:00]} dxc4 {[%emt 0:00:00]} 11. bxc4 {[%emt 0:00:00]} cxd4 {[%emt 0:00:00]} 12. exd4 {[%emt 0:00:00]} Rc8 {[%emt 0:00:00]} 13. Qb3 {[%emt 0:00:00]} Nb4 {[%emt 0:00:00]} 14. Rfd1 {[%emt 0:00:00]} Nc6 {[%emt 0:00:00]} 15. Ne5 {[%emt 0:00:00]} Na5 {[%emt 0:00:00]} 16. Qa4 {[%emt 0:00:00]} Bxg2 {[%emt 0:00:00]} 17. Kxg2 {[%emt 0:00:00]} Qc7 {[%emt 0:00:00]} 18. Rac1 {[%emt 0:00:00]} Nxc4 {[%emt 0:00:00]} 19. Nxc4 {[%emt 0:00:00]} Qxc4 {[%emt 0:00:00]} 20. Qxa7 {[%emt 0:00:00]} Bb4 {[%emt 0:00:00]} 21. d5 {[%emt 0:00:00]} Bxc3 {[%emt 0:00:00]} 22. Rxc3 {[%emt 0:00:00]} Qe4+ {[%emt 0:00:00]} 23. Rf3 {[%emt 0:00:00]} Nxd5 {[%emt 0:00:00]} 24. Qa3 {[%emt 0:00:00]} Rc2 {[%emt 0:00:00]} 25. Rd4 {[%emt 0:00:00]} Qe2 {[%emt 0:00:00]} 26. Ra4 {[%emt 0:00:00]} Rxb2 {[%emt 0:00:00]} 27. Ra8 {[%emt 0:00:00]} Ne3+ {[%emt 0:00:00]} 28. Kh3 {[%emt 0:00:00]} Qf1+ {[%emt 0:00:00]} 29. Kh4 {[%emt 0:00:00]} Ng2+ {[%emt 0:00:00]} 30. Kg4 {[%emt 0:00:00]} h5+ {[%emt 0:00:00]} 31. Kxh5 {[%emt 0:00:00]} Qb5+ {[%emt 0:00:00]} 32. Kg4 {[%emt 0:00:00]} Qb4+ {[%emt 0:00:00]} 0-1

[Event "50th Ciudad Sevilla 2024"]
[Site "Sevilla"]
[Date "2025.01.14"]
[Round "5.17"]
[White "Tahay, Alexis"]
[Black "Aeschbacher, Dimitri"]
[Result "1-0"]
[Annotator "RC"]
[ECO "A20"]
[WhiteElo "2364"]
[BlackElo "2095"]
[PlyCount "41"]
[EventDate "2025.01.10"]
[EventType "swiss"]
[EventCountry "ESP"]
[SourceTitle "playchess.com"]
[Source "ChessBase"]
[SourceQuality "1"]
[TimeControl "90+30"]

1. c4 {[%emt 0:00:00]} e5 {[%emt 0:00:00]} 2. d3 {[%emt 0:00:00]} f5 {[%emt 0:00:00]} 3. Nf3 {[%emt 0:00:00]} d6 {[%emt 0:00:00]} 4. Nc3 {[%emt 0:00:00]} Nf6 {[%emt 0:00:00]} 5. d4 {[%emt 0:00:00]} e4 {[%emt 0:00:00]} 6. Ng1 {[%emt 0:00:00]} Be7 {[%emt 0:00:00]} 7. Bg5 {[%emt 0:00:00]} O-O {[%emt 0:00:00]} 8. e3 {[%emt 0:00:00]} a5 {[%emt 0:00:00]} 9. Nge2 {[%emt 0:00:00]} h6 {[%emt 0:00:00]} 10. Bxf6 {[%emt 0:00:00]} Bxf6 {[%emt 0:00:00]} 11. Nf4 {[%emt 0:00:00]} g5 {[%emt 0:00:00]} 12. Nh5 {[%emt 0:00:00]} Bh8 {[%emt 0:00:00]} 13. h4 {[%emt 0:00:00]} Nd7 {[%emt 0:00:00]} 14. hxg5 {[%emt 0:00:00]} hxg5 {[%emt 0:00:00]} 15. c5 {[%emt 0:00:00]} Kf7 {[%emt 0:00:00]} 16. Bc4+ {[%emt 0:00:00]} Ke8 {[%emt 0:00:00]} 17. Ng7+ {[%emt 0:00:00]} Bxg7 {[%emt 0:00:00]} 18. Qh5+ {[%emt 0:00:00]} Ke7 {[%emt 0:00:00]} 19. Nd5+ {[%emt 0:00:00]} Ke6 {[%emt 0:00:00]} 20. Qg6+ {[%emt 0:00:00]} Bf6 {[%emt 0:00:00]} 21. Nxf6+ {[%emt 0:00:00]} 1-0

[Event "50th Ciudad Sevilla 2024"]
[Site "Sevilla"]
[Date "2025.01.14"]
[Round "5.18"]
[White "Pinho, Paulo"]
[Black "Navrotescu, Andreea"]
[Result "0-1"]
[Annotator "RC"]
[ECO "E12"]
[WhiteElo "2093"]
[BlackElo "2320"]
[PlyCount "70"]
[EventDate "2025.01.10"]
[EventType "swiss"]
[EventCountry "ESP"]
[SourceTitle "playchess.com"]
[Source "ChessBase"]
[SourceQuality "1"]
[TimeControl "90+30"]

1. d4 {[%emt 0:00:00]} Nf6 {[%emt 0:00:00]} 2. c4 {[%emt 0:00:00]} e6 {[%emt 0:00:00]} 3. Nf3 {[%emt 0:00:00]} b6 {[%emt 0:00:00]} 4. a3 {[%emt 0:00:00]} Bb7 {[%emt 0:00:00]} 5. Nc3 {[%emt 0:00:00]} d5 {[%emt 0:00:00]} 6. Bg5 {[%emt 0:00:00]} Be7 {[%emt 0:00:00]} 7. cxd5 {[%emt 0:00:00]} Nxd5 {[%emt 0:00:00]} 8. Nxd5 {[%emt 0:00:00]} Bxd5 {[%emt 0:00:00]} 9. Bxe7 {[%emt 0:00:00]} Qxe7 {[%emt 0:00:00]} 10. e3 {[%emt 0:00:00]} O-O {[%emt 0:00:00]} 11. Rc1 {[%emt 0:00:00]} Rc8 {[%emt 0:00:00]} 12. Bd3 {[%emt 0:00:00]} c5 {[%emt 0:00:00]} 13. O-O {[%emt 0:00:00]} Nd7 {[%emt 0:00:00]} 14. Qe2 {[%emt 0:00:00]} Bxf3 {[%emt 0:00:00]} 15. Qxf3 {[%emt 0:00:00]} cxd4 {[%emt 0:00:00]} 16. Qe4 {[%emt 0:00:00]} Nf6 {[%emt 0:00:00]} 17. Qxd4 {[%emt 0:00:00]} Rd8 {[%emt 0:00:00]} 18. Qc3 {[%emt 0:00:00]} Qb7 {[%emt 0:00:00]} 19. Qc2 {[%emt 0:00:00]} h5 {[%emt 0:00:00]} 20. Qe2 {[%emt 0:00:00]} Rd5 {[%emt 0:00:00]} 21. Bb5 {[%emt 0:00:00]} Rd6 {[%emt 0:00:00]} 22. Ba6 {[%emt 0:00:00]} Qe7 {[%emt 0:00:00]} 23. h3 {[%emt 0:00:00]} Rad8 {[%emt 0:00:00]} 24. Rc2 {[%emt 0:00:00]} g6 {[%emt 0:00:00]} 25. Rfc1 {[%emt 0:00:00]} Ne4 {[%emt 0:00:00]} 26. Qf3 {[%emt 0:00:00]} Nc5 {[%emt 0:00:00]} 27. Bb5 {[%emt 0:00:00]} Rd5 {[%emt 0:00:00]} 28. Be2 {[%emt 0:06:09]} Rf5 {[%emt 0:00:00]} 29. Qc6 {[%emt 0:00:06]} Qf6 {[%emt 0:00:00]} 30. b4 {[%emt 0:01:11]} Nb3 {[%emt 0:00:00]} 31. Rf1 {[%emt 0:00:59]} Nd2 {[%emt 0:00:00]} 32. Rd1 {[%emt 0:00:07]} Rfd5 {[%emt 0:00:00]} 33. Qc3 {[%emt 0:04:05]} Ne4 {[%emt 0:00:00]} 34. Qe1 {[%emt 0:01:39]} Rxd1 {[%emt 0:00:00]} 35. Bxd1 {[%emt 0:00:11]} Qa1 {[%emt 0:00:00]} 0-1

[Event "50th Ciudad Sevilla 2024"]
[Site "Sevilla"]
[Date "2025.01.14"]
[Round "5.19"]
[White "Ouellet, Maili-Jade"]
[Black "Iturbide Arnedo, Oscar"]
[Result "1-0"]
[Annotator "RC"]
[ECO "E49"]
[WhiteElo "2319"]
[BlackElo "2094"]
[PlyCount "46"]
[EventDate "2025.01.10"]
[EventType "swiss"]
[EventCountry "ESP"]
[SourceTitle "playchess.com"]
[Source "ChessBase"]
[SourceQuality "1"]
[TimeControl "90+30"]

1. d4 {[%emt 0:00:00]} Nf6 {[%emt 0:00:00]} 2. c4 {[%emt 0:00:00]} e6 {[%emt 0:00:00]} 3. Nc3 {[%emt 0:00:00]} Bb4 {[%emt 0:00:00]} 4. e3 {[%emt 0:00:00]} O-O {[%emt 0:00:00]} 5. Bd3 {[%emt 0:00:00]} d5 {[%emt 0:00:00]} 6. a3 {[%emt 0:00:00]} Bxc3+ {[%emt 0:00:00]} 7. bxc3 {[%emt 0:00:00]} dxc4 {[%emt 0:00:00]} 8. Bxc4 {[%emt 0:00:00]} c5 {[%emt 0:00:00]} 9. Ne2 {[%emt 0:00:00]} Qc7 {[%emt 0:00:00]} 10. Bd3 {[%emt 0:00:00]} b6 {[%emt 0:00:00]} 11. e4 {[%emt 0:00:00]} Ba6 {[%emt 0:00:00]} 12. Bxa6 {[%emt 0:00:00]} Nxa6 {[%emt 0:00:00]} 13. Bf4 {[%emt 0:00:00]} Qc6 {[%emt 0:00:00]} 14. f3 {[%emt 0:00:00]} Nh5 {[%emt 0:00:00]} 15. Be5 {[%emt 0:00:00]} f6 {[%emt 0:00:00]} 16. Bg3 {[%emt 0:00:00]} Nxg3 {[%emt 0:00:00]} 17. hxg3 {[%emt 0:00:00]} Nc7 {[%emt 0:00:00]} 18. Qd3 {[%emt 0:00:00]} Rad8 {[%emt 0:00:00]} 19. Rd1 {[%emt 0:00:00]} Qa4 {[%emt 0:02:09]} 20. e5 {[%emt 0:00:00]} g6 {[%emt 0:06:34]} 21. exf6 {[%emt 0:00:00]} Rxf6 {[%emt 0:01:17]} 22. Qe4 {[%emt 0:00:00]} cxd4 {[%emt 0:00:58]} 23. Qh4 {[%emt 0:00:00]} Ne8 {[%emt 0:01:35]} 1-0